Workbook

Sheet Einleitung
A1: Einleitung
A3: Übersicht über die beiden Anwendungen und den Inhalt der Tabellenblätter
A6: Diese EXCEL-Datei bietet 2 Anwendungen:
B8: 1. Prüfung auf Anwendbarkeit der Störfall-Verordnung bei Biogasanlagen aufgrund des Vorhandenseins hochentzündlicher Gase (grüne Tabellenblätter)
B9: 2. Prüfung auf die Genehmigungsbedürftigkeit von Biogasanlagen in Abhängigkeit von den Einsatzstoffen (gelbe Tabellenblätter). Wenn Sie die Taste "Einsatzmenge Inhalte löschen" in der Arbeitsmappe "Genehmigungsbedürftigkeit" nutzen möchten, müssen Sie die Makros in der Anwendung aktivieren!
A12: Hinweise zu den einzelnen Tabellenblätter:
A14: StörfallV: | C14: Eingabe der Anlagendaten & Ergebnisausgabe
A15: Gaszusammensetzung: | C15: Optionale Eingabe von Gaszusammensetzungen, die von den vorgegebenen Standardwerten abweichen
A17: Fermenter: | C17: Eingabe der Geometrie der Fermenter
A18: Gärrestelager: | C18: Eingabe der Geometrie von an das Gassystem angeschlossenen Gärrestelagerbehältern
A20: Rohrleitungen: | C20: Optionale Eingabe von Rohrleitungen un deren Geometrien
A21: Erläuterungen: | C21: Erläuterungen incl. zur Bemaßung von Behältern
A23: Genehmigungsbedürftigkeit: | C23: Eingabe von Anlagendaten und Einsatzstoffen; Ausgabe Gasertrag
A24: Hinweise: | C24: Hinweise zur Nutzung der Tabellenblätter
A25: Einsatzstoffe: | C25: Liste der auswählbaren Einsatzstoffe

Sheet StörfallV
A1: Prüfung der Anwendbarkeit der StörfallV auf Biogasanlagen | I1: Hinweise:
A3: Bitte die Hinweise zur Anwendung unter "Erläuterungen" beachten! | G3: Version 1.3 | I3: Die StörfallV definiert das Vorhandensein von Stoffen wie folgt:
A5: Die Prüfung der Anwendbarkeit der StörfallV muss in zwei Schritten erfolgen: | I5: Vorhandensein gefährlicher Stoffe:
A6: 1. Die Volumina an Biogas werden errechnet und mit der Dichte des Biogases multipliziert. | I6: das tatsächliche oder vorgesehene Vorhandensein gefährlicher Stoffe oder ihr Vorhandensein, soweit davon auszugehen ist, dass sie bei einem außer Kontrolle geratenen industriellen chemischen Verfahren anfallen, und zwar in Mengen, die die in Anhang I genannten Mengenschwellen erreichen oder überschreiten
A7: Hierzu finden Sie Hilfen auf den nachfolgenden Blättern. Zumindest in den Blättern "Fermenter" und "Gärrestlager" müssen Anzahl und Abmessungen eingetragen werden. Das Volumen eines separaten Gaslagers ist auf diesem Blatt einzutragen. Für Rohrleitungen wird 2% des sonstigen Volumens angenommen, falls im Blatt "Rohrleitungen" keine Eintragung erfolgt. Sofern eine Hydrolysestufe vorhanden ist, ist das Volumen an vorhandenem Hydrolysegas auf diesem Blatt einzutragen. Das Ergebnis des Schrittes 1. wird unten angezeigt (siehe Text in den Zeilen 44 bis 46).
I10: Anhang I Nr. 4 Satz 1:
I11: Die für die Anwendung der einschlägigen Vorschriften zu berücksichtigenden Mengen sind die Höchstmengen, die zu irgendeinem Zeitpunkt vorhanden sind oder vorhanden sein können.
A14: 2. Die Massen der sonstigen "vorhandenen" Stoffe müssen ggf. geprüft werden. | I14: Der Begriff Betriebsbereich wird in § 3 Abs. 5a BImSchG wie folgt definiert:
A15: Dies ist in dieser Arbeitshilfe nicht integriert und muss manuell oder mit Hilfe anderer, geeigneter Programme erfolgen. | I15: Ein Betriebsbereich ist der gesamte unter der Aufsicht eines Betreibers stehende Bereich, in dem gefährliche Stoffe im Sinne des Artikels 3 Nr. 4 der Richtlinie 96/82/EG des Rates vom 9. Dezember 1996 zur Beherrschung der Gefahren bei schweren Unfällen mit gefährlichen Stoffen (ABl. EG 1997 Nr. L 10 S. 13), geändert durch die Richtlinie 2003/105/EG des Europäischen Parlaments und des Rates vom 16. Dezember 2003 (ABl. EU Nr. L 345 S. 97), in einer oder mehreren Anlagen einschließlich gemeinsamer oder verbundener Infrastrukturen und Tätigkeiten einschließlich Lagerung im Sinne des Artikels 3 Nr. 8 der Richtlinie in den in Artikel 2 der Richtlinie bezeichneten Mengen tatsächlich vorhanden oder vorgesehen sind oder vorhanden sein werden, soweit davon auszugehen ist, dass die genannten gefährlichen Stoffe bei einem außer Kontrolle geratenen industriellen chemischen Verfahren anfallen; ausgenommen sind die in Artikel 4 der Richtlinie 96/82/EG angeführten Einrichtungen, Gefahren und Tätigkeiten.
A18: Eine Eingabe wird von Ihnen erwartet bei den Feldern:
A19: Eine Eingabe ist möglich (mit Nachweis) bei den Feldern:
A21: Anlage/ Betriebsbereich: | F21: NR.:
A22: Straße:
A23: PLZ: | F23: HW:
A24: Ort: | F24: RW:
A26: 1. Prüfung der Anwendbarkeit aufgrund des Vorhandenseins hochentzündlicher Gase
E27: Volumen | G27: relevante Masse
E28: m³ | G28: kg | I28: Weitere Hinweise in der Vollzugshilfe des BMU zur StörfallV zu entnehmen:
C29: Fermenter | E29: =Fermenter!C4 -> 0 | G29: =IF(Gaszusammensetzung!K19=0,E29*E36,E29*Gaszusammensetzung!K19) -> 0 | I29: https://www.bmu.de/fileadmin/Daten_BMU/Download_PDF/Wirtschaft_und_Umwelt/vollzugshilfe_stoerfall_vo.pdf
C30: Gasspeicher | E30: 0 | G30: =IF(E30>0,IF(Gaszusammensetzung!L19=0,E30*E36,Gaszusammensetzung!L19*E30),0) -> 0
C31: Gärrestelager | E31: =Gärrestelager!C4 -> 0 | G31: =IF(Gaszusammensetzung!M19=0,E31*E36,E31*Gaszusammensetzung!M19) -> 0 | I31: Grundsätzlich kann das Volumen in Rohrleitungen mit 2 % des Volumens der anderen Anlagenteile angenommen werden. (Diese Berechnung erfolgt automatisch, falls im Blatt Rohrleitung keine Eintragung erfolgt.) In Anlagen, deren Teile nahe beeinander aufgestellt sind (keine gasführenden Rohrleitungen länger als 100 m) kann der Rohrleitungsinhalt mit 50 kg angenommen werden. (dann ist 50 (kg) manuell in G32 einzutragen!)
C32: Rohrleitungen | E32: =IF(Rohrleitungen!D4>0,Rohrleitungen!D4,(E29+E30+E31+E33)*0.02) -> 0 | G32: =IF(Gaszusammensetzung!N19=0,E32*E36,E32*Gaszusammensetzung!N19) -> 0
C33: sonstiges | G33: =IF(E33>0,IF(Gaszusammensetzung!O19=0,E33*E36,E33*Gaszusammensetzung!O19),0) -> 0
C34: Biogas | E34: =SUM(E29:E33) -> 0 | G34: =SUM(G29:G33) -> 0
A36: Maximal mögliche/zulässige Dichte Biogas | E36: =IF(Gaszusammensetzung!K19+Gaszusammensetzung!L19+Gaszusammensetzung!M19+Gaszusammensetzung!N19+Gaszusammensetzung!O19=0,IF(Gaszusammensetzung!D9=1.30665,1.3,Gaszusammensetzung!D9),"Einzelwerte") -> 1.3 | F36: kg/m³
E37: Volumen | G37: relevante Masse | I37: Hinweis des AISV:
E38: m³ | G38: kg | I38: Auf seiner 118. Sitzung hat der AISV sich dafür ausgesprochen, auf Erdgasqualität aufbereitetes Biogas störfallrechtlich der Nr. 11 des Anhangs I der Störfall-Verordnung zuzuordnen.
C39: Hydrolyse | E39: 0 | G39: =IF(Gaszusammensetzung!J19=0,E39*E40,E39*Gaszusammensetzung!J19) -> 0
A40: Maximal mögliche/zulässige Dichte an Hydrolysegas | E40: =IF(Gaszusammensetzung!J19=0,Gaszusammensetzung!D22,Gaszusammensetzung!J19) -> 0.957045 | F40: kg/m³ | I40: Dies trifft für Gase zu, die die Anforderungen für die Netzeinspeisung (DVGW 262) erfüllen.
A42: "Vorhandenes" Biogas | G42: =G34+G39 -> 0 | H42: kg
A44: Anwendbarkeit der StörfallV wg. des Vorhandenseins hochentzündlicher Gase: | E44: =IF(G42<10000,"sonstige Stoffe prüfen! "," ") -> sonstige Stoffe prüfen!
E45: =IF(G42>=10000,IF(G42<50000,"Grundpflichten, sonstige Stoffe prüfen! "," ")," ") -> 
E46: =IF(G42>=50000,"erweiterte Pflichten"," ") -> 

Sheet Gaszusammensetzung
A1: Optionale Eingaben der Gaszusammensetzungen:
A3: 1. Berechnung der Dichte von Bio- und Hydrolysegas für alle Anlagenteile: | I3: 2. Berechnung der Dichte von Bio- und Hydrolyegas für einzelne Anlagenteile :
I4: (Werte für "Fermenter" bis "sonstiges" bitte vollständig eingeben, wenn Volumen vorhanden)
C5: vorhandenes | D5: Dichte °C | E5: Dichte °C | I5: Berechnung der Zündfähigkeit und Dichte von Bio- Hydrolysegas nach ISO 10156 (2010(E):
A6: Daten aus KAS - 12 | C6: Biogas: | D6: 15 | E6: 0 | F6: 1013 mbar | J6: Hydrolyse | K6: Fermenter | L6: Gasspeicher | M6: Gärrestelager | N6: Rohrleitungen | O6: sonstiges
A7: CO2 | B7: 0.55 | C7: =B7 -> 0.55 | D7: 1.83 | E7: 1.9767 | F7: kg/m³ | I7: CH4 (%) | J7: 0
A8: CH4 | B8: 0.45 | C8: =B8 -> 0.45 | D8: 0.667 | E8: 0.7175 | F8: kg/m³ | I8: H2 (%) | J8: 0
A9: Biogas: | D9: =D7*C7+D8*C8 -> 1.30665 | E9: =E7*C7+E8*C8 -> 1.41006 | F9: kg/m³ | I9: NH3 (%) | J9: 0
A10: Verhältnis zu Luft: | D10: =D9/1.225 -> 1.066653061 | E10: =E9/1.292 -> 1.091377709 | I10: H2S (%) | J10: 0
A11: Im KAS Merkblatt "Sicherheit in Biogasanlagen" wird als Modell für Biogas eine CO2/CH4-Mischung betrachtet und als minimale Methankonzentration 45% angegeben. Dieser Wert wird hier angesetzt und 15°C als mittlere Temperatur von Fermentern und unbeheizten, nicht isolierten Gärrestelagern (im Winter) angenommen.
I12: CO2 (%) | J12: 0
I13: H2O (%) | J13: 0
I14: N2 (%) | J14: 0 | K14: 0 | L14: 0 | M14: 0 | N14: =K14 -> 0 | O14: 0
A15: http://www.kas-bmu.de/publikationen/kas/KAS_12.pdf | I15: Rest: | J15: =100-SUM(J7:J14) -> 100 | K15: 100 | L15: 100 | M15: 100 | N15: 100 | O15: 100
A17: Berechnung der Dichte von Hydrolysegas | I17: Summe (%) | J17: =IF(SUM(J7:J10)+SUM(J12:J14)=100,100,"Werte prüfen!") -> Werte prüfen! | K17: Werte prüfen! | L17: Werte prüfen! | M17: Werte prüfen! | N17: Werte prüfen! | O17: Werte prüfen!
C18: vorhandenes | D18: Dichte °C | E18: Dichte °C
C19: Hydrolysegas | D19: 15 | E19: 0 | F19: 1013 mbar | I19: Dichte 15°C | J19: =(J7*$L28+J8*$L29+J9*$L30+J10*$L31+J12*$L33+J13*$L34+J14*$L35)/100 -> 0 | K19: 0 | L19: 0 | M19: 0 | N19: 0 | O19: 0 | P19: kg/m³
A20: CO2 | B20: 0.5 | C20: =B20 -> 0.5 | D20: 1.83 | E20: 1.9767 | F20: kg/m³
A21: H2 | B21: 0.5 | C21: =B21 -> 0.5 | D21: 0.08409 | E21: 0.0899 | F21: kg/m³ | I21: Ein Gas ist nach ISO 10156 hochentzündlich, wenn ΣAi(100/Tci-1)>ΣBk*Kk ist.
A22: Hydrolysegas: | D22: =D20*C20+D21*C21 -> 0.957045 | E22: =E20*C20+E21*C21 -> 1.0333 | F22: kg/m³ | I22: =ΣAi(100/Tci-1) | J22: =J7*(100/$J28-1)+J8*(100/$J29-1)+J9*(100/$J30-1)+J10*(100/$J31-1) -> 0 | K22: 0 | L22: 0 | M22: 0 | N22: 0 | O22: 0
A23: Nach: Daniel Preißer: Bietet eine separate Hydrolyse zusätzliches Potential in NaWaRo-Biogasanlagen, Universität Hohenheim 5.6.2008 | I23: =ΣBk*Kk | J23: =J12*$J33+J13*$J34+J14*$J35 -> 0 | K23: 0 | L23: 0 | M23: 0 | N23: 0 | O23: 0
J24: =IF(J19=0," ",IF(J22>J23,"hochentzündlich","Nach ISO nicht hoch- entzündlich")) -> 
A26: Hinweis:
A27: Optional können die vorgegebenen Werte für die Gaszusammensetzungen ersetzt werden. Dies kann 1.) entweder für die Zusammensetzung von Biogas in allen Anlagenteilen und/oder die Hydrolysestufe erfolgen (linke Seite) oder 2.) für jede Gruppe von Anlagenteilen unter Berücksichtigung unterschiedlicher Zusammensetzungen in jeder Gruppe (rechte Seite). | J27: Tci in % | K27: Li in % | L27: Dichte 15 °C | M27: Dichte 0 °C
I28: CH4 (%) | J28: 8.7 | K28: 4.4 | L28: 0.667 | M28: 0.7175
I29: H2 (%) | J29: 5.5 | K29: 4 | L29: 0.084 | M29: 0.0899
I30: NH3 (%) | J30: 40.1 | K30: 15.4 | L30: 0.7198 | M30: 0.7714
A31: Bei 1.) sind die Werte für "vorhandenes Biogas" (C7:C8) und/oder "vorhandenes Hydrolysegas" (C20:C21) zu überschreiben. | I31: H2S (%) | J31: 8.9 | K31: 3.9 | L31: 1.435 | M31: 1.5359
J32: Kk in %
A33: Bei 2.) sind die Werte für die Zusammensetzung des Gases in vol% für Gruppen von Anlagenteilen einzugeben, wobei dies für jede Gruppe erfolgen muss, für die ein Volumen eingetragen wurde. Die Summe muss 100% ergeben. Das Programm prüft dann, ob das entsprechende Gas gemäß der ISO 10156 hochentzündlich ist. | I33: CO2 (%) | J33: 1.5 | L33: 1.83 | M33: 1.9767
I34: H2O (%) | J34: 1.5 | L34: 0.013
I35: N2 (%) | J35: 1 | L35: 1.1694 | M35: 1.25
A37: Ist dies nicht der Fall, können Volumina entsprechender Anlagenteile bei der Eingabe auf den nachfolgenden Blättern entfallen, wenn ein Nachweis von einer Messstelle nach § 26 BImSchG oder einer ZÜS für den Bereich Ex-Schutz, dass verfahrens- oder anlagenbedingt kein hochentzündliches Gasgemisch gemäß ISO 10156 und StörfallV "vorhanden" sein kann, vorliegt. Soweit ein derartiger Nachweis nicht vorliegt, sind auch die entsprechende Volumina zu berücksichtigen. | I37: Tci in % | J37: Maximalgehalt des Gases, das mit N2 gemischt, nicht entflammbar in Luft ist.
I38: Li in % | J38: Untere Zündgrenze in Luft
I39: Kk | J39: Äquivalenzkoeffizient eines Inertgases bezogen auf N2

Sheet Fermenter
A1: Berechnung des technisch maximal möglichen oder zulässigen Volumens von Biogas im Fermenter/in den Fermentern | M1: (Die Grafiken lassen sich durch anklicken und ziehen am Rahmen vergrößern. Die einzutragenen Maße werden dann sichtbar).
A2: (Behältern, die unter möglichem Vorhandensein von hochentzündlichem Biogas mit konstanten Füllständen betrieben werden.)
A4: Gesamtvolumen: | C4: =E8+K8+Q8+AA8+AG8+AP8 -> 0 | D4: m³
A7: Bitte alle Maße in Meter eingeben.
A8: Einzelvolumina | E8: =SUM(E12:E32) -> 0 | F8: m³ | K8: =SUM(K12:K32) -> 0 | L8: m³ | Q8: =SUM(Q12:Q32) -> 0 | R8: m³ | AA8: =SUM(AA12:AA32) -> 0 | AB8: m³ | AG8: =SUM(AG12:AG32) -> 0 | AH8: m³ | AP8: =SUM(AP12:AP32) -> 0 | AQ8: m³
A10: Zylindrische Fermenter mit aufgesetztem Kegel (z.B. mit Innen- und Außenfolie) | G10: Zylindrische Fermenter mit aufgesetztem Kugelsegment (z.B. Behälter mit einer Folie unter Innendruck) | M10: Propfenstromfermenter (liegender Zylinder) | S10: Quader mit aufgesetztem zylindrischem Gasspeicher + Halbkugelenden | AC10: Quader (Boxen) | AI10: Pfefferkornfermenter
A11: Anzahl | B11: r Zylinder-radius | C11: h'' Freibord | D11: h' Kegelhöhe | E11: Volumen | G11: Anzahl | H11: r Zylinder-radius | I11: h'' Freibord | J11: h' Höhe Kugel-segment | K11: Volumen | M11: Anzahl | N11: r Zylinder-radius | O11: l Zylinder-länge | P11: h' Freibord | Q11: Volumen | S11: Anzahl | T11: r Zylinder-radius | U11: l' Zylinder-länge | V11: l'' Bodenlänge | W11: h' Freibord1 | X11: L Länge | Y11: B Breite | Z11: h'' Freibord2 | AA11: Volumen | AC11: Anzahl | AD11: L Länge | AE11: B Breite | AF11: h' Freibord | AG11: Volumen | AI11: Anzahl | AJ11: r Radius 1 | AK11: r' radius 2 | AL11: h' Höhe 1 | AM11: h'' Höhe 2 | AN11: h''' Höhe 3 | AO11: h'''' Höhe 4
E12: =A12*((PI()*B12^2*C12)+(PI()*1/3*B12^2*D12)) -> 0 | K12: =G12*((PI()*H12^2*I12)+(PI()*J12*1/6*(3*H12^2+J12^2))) -> 0 | M12: 0 | N12: 1 | Q12: =M12*(N12^2*O12*(ACOS((N12-P12)/N12)-(N12-P12)*(2*N12*P12-P12^2)^0.5/N12^2)+(PI() *P12^2*1/3*(3*N12-P12))) -> 0 | S12: 0 | T12: 1 | AA12: =S12*((T12^2*U12*(ACOS((T12-W12)/T12)-(T12-W12)*(2*T12*W12-W12^2)^0.5/T12^2)+(PI()*V12*1/6*(3*W12^2+V12^2)))+X12*Y12*Z12) -> 0 | AG12: =AC12*AD12*AE12*AF12 -> 0 | AP12: =AI12*PI()*(AJ12^2*(AO12+1/3*AN12)+1/3*AJ12*AK12*AN12+AK12^2*(1/3*AN12+AM12+1/3*AL12)) -> 0
E13: 0 | K13: 0 | M13: 0 | N13: 1 | Q13: 0 | S13: 0 | T13: 1 | AA13: =S13*((T13^2*U13*(ACOS((T13-W13)/T13)-(T13-W13)*(2*T13*W13-W13^2)^0.5/T13^2)+(PI() *W13^2*1/3*(3*T13-W13)))+X13*Y13*Z13) -> 0 | AG13: 0 | AP13: 0
E14: 0 | K14: 0 | M14: 0 | N14: 1 | Q14: 0 | S14: 0 | T14: 1 | AA14: 0 | AG14: 0 | AP14: 0
E15: 0 | K15: 0 | M15: 0 | N15: 1 | Q15: 0 | S15: 0 | T15: 1 | AA15: 0 | AG15: 0 | AP15: 0
E16: 0 | K16: 0 | M16: 0 | N16: 1 | Q16: 0 | S16: 0 | T16: 1 | AA16: 0 | AG16: 0 | AP16: 0
E17: 0 | K17: 0 | M17: 0 | N17: 1 | Q17: 0 | S17: 0 | T17: 1 | AA17: 0 | AG17: 0 | AP17: 0
E18: 0 | K18: 0 | M18: 0 | N18: 1 | Q18: 0 | S18: 0 | T18: 1 | AA18: 0 | AG18: 0 | AP18: 0
E19: 0 | K19: 0 | M19: 0 | N19: 1 | Q19: 0 | S19: 0 | T19: 1 | AA19: 0 | AG19: 0 | AP19: 0
E20: 0 | K20: 0 | M20: 0 | N20: 1 | Q20: 0 | S20: 0 | T20: 1 | AA20: 0 | AG20: 0 | AP20: 0
E21: 0 | K21: 0 | M21: 0 | N21: 1 | Q21: 0 | S21: 0 | T21: 1 | AA21: 0 | AG21: 0 | AP21: 0
E22: 0 | K22: 0 | M22: 0 | N22: 1 | Q22: 0 | S22: 0 | T22: 1 | AA22: 0 | AG22: 0 | AP22: 0
E23: 0 | K23: 0 | M23: 0 | N23: 1 | Q23: 0 | S23: 0 | T23: 1 | AA23: 0 | AG23: 0 | AP23: 0
E24: 0 | K24: 0 | M24: 0 | N24: 1 | Q24: 0 | S24: 0 | T24: 1 | AA24: 0 | AG24: 0 | AP24: 0
E25: 0 | K25: 0 | M25: 0 | N25: 1 | Q25: 0 | S25: 0 | T25: 1 | AA25: 0 | AG25: 0 | AP25: 0
E26: 0 | K26: 0 | M26: 0 | N26: 1 | Q26: 0 | S26: 0 | T26: 1 | AA26: 0 | AG26: 0 | AP26: 0
E27: 0 | K27: 0 | M27: 0 | N27: 1 | Q27: 0 | S27: 0 | T27: 1 | AA27: 0 | AG27: 0 | AP27: 0
E28: 0 | K28: 0 | M28: 0 | N28: 1 | Q28: 0 | S28: 0 | T28: 1 | AA28: 0 | AG28: 0 | AP28: 0
E29: 0 | K29: 0 | M29: 0 | N29: 1 | Q29: 0 | S29: 0 | T29: 1 | AA29: 0 | AG29: 0 | AP29: 0
E30: 0 | K30: 0 | M30: 0 | N30: 1 | Q30: 0 | S30: 0 | T30: 1 | AA30: 0 | AG30: 0 | AP30: 0
E31: 0 | K31: 0 | M31: 0 | N31: 1 | Q31: 0 | S31: 0 | T31: 1 | AA31: 0 | AG31: 0 | AP31: 0
E32: 0 | K32: 0 | M32: 0 | N32: 1 | Q32: 0 | S32: 0 | T32: 1 | AA32: 0 | AG32: 0 | AP32: 0

Sheet Gärrestelager
A1: Berechnung des technisch maximal möglichen oder zulässigen Volumens von Biogas im abgedeckten Gärrestelager/in den abgedeckten Gärrestelagern | O1: (Die Grafiken lassen sich durch anklicken und ziehen am Rahmen vergrößern. Die einzutragenen Maße werden dann sichtbar).
A2: (Behältern, die unter möglichem Vorhandensein von hochentzündlichem Biogas mit wechselnden Füllständen (z.B. Vorlagen, Gärrestelager) betrieben werden.)
A4: Gesamtvolumen: | C4: =F8+M8+S8+Z8+AI8 -> 0 | D4: m³
A7: Bitte alle Maße in Meter eingeben.
A8: Einzelvolumina | F8: =SUM(F12:F32) -> 0 | G8: m³ | M8: =SUM(M12:M32) -> 0 | N8: m³ | S8: =SUM(S12:S32) -> 0 | T8: m³ | Z8: =SUM(Z12:Z32) -> 0 | AA8: m³ | AI8: =SUM(AI12:AI32) -> 0 | AJ8: m³
A10: Zylinder mit aufgesetztem Kegel (z.B. mit Innen- und Außenfolie) | H10: Zylinder mit aufgesetztem Kugelsegment (z.B. Behälter mit einer Folie unter Innendruck) | O10: Zylinder mit Flachdach | U10: Quader (Boxen) | AB10: abgedecktes Erdbecken
A11: Anzahl | B11: r Zylinder- radius | C11: h Höhe | D11: h''' Stand nach Entleerung | E11: h' Kegelhöhe | F11: Volumen | H11: Anzahl | I11: r Zylinder-radius | J11: h Höhe | K11: h''' Stand nach Entleerung | L11: h' Höhe Kugel-segment | M11: Volumen | O11: Anzahl | P11: r Zylinder-radius | Q11: H Höhe | R11: h''' Stand nach Entleerung | S11: Volumen | U11: Anzahl | V11: L Länge | W11: B Breite | X11: H Höhe | Y11: h''' Stand nach Entleerung | Z11: Volumen | AB11: Anzahl | AC11: H Höhe | AD11: h''' Höhe 1 | AE11: B Breite | AF11: b' Breite 1 | AG11: L Länge | AH11: l ´ Länge | AI11: Volumen
F12: =A12*((PI()*B12^2*(C12-D12))+(PI()*1/3*B12^2*E12)) -> 0 | M12: =H12*((PI()*I12^2*(J12-K12))+(PI()*L12*1/6*(3*I12^2+L12^2))) -> 0 | S12: =O12*(PI()*P12^2*(Q12-R12)) -> 0 | Z12: =U12*V12*W12*(X12-Y12) -> 0 | AC12: 1 | AI12: =AB12*1/3*(AC12-AD12)*((AF12+(AE12-AF12)*AD12/AC12)*(AH12+(AG12-AH12)*AD12/AC12)+((AF12+(AE12-AF12)*AD12/AC12)*(AH12+(AG12-AH12)*AD12/AC12)*AE12*AG12)^0.5+AE12*AG12) -> 0 | AK12: Die Volumina sonstiger Behälter oder abgedeckter Endlager für vollständig vergorenes Substrat (i.d.R. vierte Stufe), die nicht beheizt werden und nicht mit dem Biogassystem verbunden sind, werden berücksichtigt, es sei denn, durch ein Messprogramm (insbesondere hinsichtlich CH4, H2, H2S, NH3) einer Messstelle nach § 26 BImSchG oder einer ZÜS für den Bereich Ex-Schutz wird der Nachweis erbracht, dass die untere Explosionsgrenze verfahrens- oder anlagenbedingt nicht überschritten werden kann, d.h. kein hochentzündliches Gasgemisch gemäß StörfallV „vorhanden“ sein kann. Geruchsmindernd abgedeckte Vorlagebehälter oder geruchsmindernd abgedeckte, hinter einem Separator angeordnete Endlager ohne relevanten Feststoffanteil, die nicht beheizt werden und nicht mit dem Biogassystem verbunden sind, können unberücksichtigt bleiben.
F13: 0 | M13: 0 | S13: 0 | Z13: 0 | AC13: 1 | AI13: 0
F14: 0 | M14: 0 | S14: 0 | Z14: 0 | AC14: 1 | AI14: 0
F15: 0 | M15: 0 | S15: 0 | Z15: 0 | AC15: 1 | AI15: 0
F16: 0 | M16: 0 | S16: 0 | Z16: 0 | AC16: 1 | AI16: 0
F17: 0 | M17: 0 | S17: 0 | Z17: 0 | AC17: 1 | AI17: 0
F18: 0 | M18: 0 | S18: 0 | Z18: 0 | AC18: 1 | AI18: 0
F19: 0 | M19: 0 | S19: 0 | Z19: 0 | AC19: 1 | AI19: 0
F20: 0 | M20: 0 | S20: 0 | Z20: 0 | AC20: 1 | AI20: 0
F21: 0 | M21: 0 | S21: 0 | Z21: 0 | AC21: 1 | AI21: 0
F22: 0 | M22: 0 | S22: 0 | Z22: 0 | AC22: 1 | AI22: 0
F23: 0 | M23: 0 | S23: 0 | Z23: 0 | AC23: 1 | AI23: 0
F24: 0 | M24: 0 | S24: 0 | Z24: 0 | AC24: 1 | AI24: 0
F25: 0 | M25: 0 | S25: 0 | Z25: 0 | AC25: 1 | AI25: 0
F26: 0 | M26: 0 | S26: 0 | Z26: 0 | AC26: 1 | AI26: 0
F27: 0 | M27: 0 | S27: 0 | Z27: 0 | AC27: 1 | AI27: 0
F28: 0 | M28: 0 | S28: 0 | Z28: 0 | AC28: 1 | AI28: 0
F29: 0 | M29: 0 | S29: 0 | Z29: 0 | AC29: 1 | AI29: 0
F30: 0 | M30: 0 | S30: 0 | Z30: 0 | AC30: 1 | AI30: 0
F31: 0 | M31: 0 | S31: 0 | Z31: 0 | AC31: 1 | AI31: 0
F32: 0 | M32: 0 | S32: 0 | Z32: 0 | AC32: 1 | AI32: 0

Sheet Rohrleitungen
A1: Berechnung des technisch maximal möglichen oder zulässigen Volumens von Biogas in den Rohrleitungen
A2: (Rohrleitungen, die unter Vorhandensein von hochentzündlichem Biogas betrieben werden und zum Betriebsbereich gehören.)
A4: Gesamtvolumen: | D4: =SUM(F10:F30) -> 0 | E4: m³
A6: Bitte lfm in Meter eingeben
B8: D Durchmesser | E8: L (m)
A9: Anzahl | B9: DN (mm) | C9: oder | D9: Zoll (") | E9: lfm | F9: Volumen
F10: =A10*PI()*(B10/2000)^2*E10+A10*PI()*(D10*2.54/200)^2*E10 -> 0
F11: 0
F12: 0
F13: 0
F14: 0
F15: 0
F16: 0
F17: 0
F18: 0
F19: 0
F20: 0
F21: 0
F22: 0
F23: 0
F24: 0
F25: 0
F26: 0
F27: 0
F28: 0
F29: 0
F30: 0

Sheet Erläuterungen
A1: Erläuterungen (für weitere Seiten bitte öffnen - Doppelklick!)

Sheet Genehmigungsbedürftigkeit
C2: Berechnung des Gasertrages
C3: Anlage/Betreiber: | D3: Datum:
B6: Nummer | C6: Einsatzstoff | D6: Biogasertrag in m³/t Frischmasse | E6: Einsatzmenge in t FM/Jahr | F6: Gasertrag in Nm³/Jahr
B7: =Einsatzstoffe!A58 -> 54. | C7: =Einsatzstoffe!B58 -> Mais (Ganzpflanze) *) | D7: =Einsatzstoffe!E58 -> 203.8461538 | F7: =D7*E7 -> 0
B8: =Einsatzstoffe!A31 -> 27. | C8: =Einsatzstoffe!B31 -> Gras einschließlich Ackergras | D8: =Einsatzstoffe!E31 -> 185.1851852 | F8: =D8*E8 -> 0
B9: =Einsatzstoffe!A24 -> 20. | C9: =Einsatzstoffe!B24 -> Getreide (Ganzpflanze) *) | D9: =Einsatzstoffe!E24 -> 198.0769231 | F9: 0
B10: =Einsatzstoffe!A12 -> 8. | C10: =Einsatzstoffe!B12 -> Corn-Cob-Mix (CCM) | D10: =Einsatzstoffe!E12 -> 456.6037736 | F10: 0
B11: =Einsatzstoffe!A74 -> 70. | C11: =Einsatzstoffe!B74 -> Rindergülle | D11: =Einsatzstoffe!E74 -> 30.90909091 | F11: 0
B12: =Einsatzstoffe!A73 -> 69. | C12: =Einsatzstoffe!B73 -> Rinderfestmist | D12: =Einsatzstoffe!E73 -> 96.36363636 | F12: 0
B13: =Einsatzstoffe!A81 -> 77. | C13: =Einsatzstoffe!B81 -> Schweinegülle | D13: =Einsatzstoffe!E81 -> 20 | F13: 0
C14: Weitere Einsatzstoffe:
B15: 1 | D15: =IF(INDEX(Einsatzstoffe!E5:E96,Genehmigungsbedürftigkeit!B15)<>0,INDEX(Einsatzstoffe!E5:E96,Genehmigungsbedürftigkeit!B15),"") ->  | F15: =IF(D15<>"",D15*E15,"0") -> 0
B16: 1 | D16: =IF(INDEX(Einsatzstoffe!E5:E96,Genehmigungsbedürftigkeit!B16)<>0,INDEX(Einsatzstoffe!E5:E96,Genehmigungsbedürftigkeit!B16),"") ->  | F16: =IF(D16<>"",D16*E16,"0") -> 0
B17: 1 | D17: =IF(INDEX(Einsatzstoffe!E5:E96,Genehmigungsbedürftigkeit!B17)<>0,INDEX(Einsatzstoffe!E5:E96,Genehmigungsbedürftigkeit!B17),"") ->  | F17: =IF(D17<>"",D17*E17,"0") -> 0
B18: 1 | D18: =IF(INDEX(Einsatzstoffe!E5:E96,Genehmigungsbedürftigkeit!B18)<>0,INDEX(Einsatzstoffe!E5:E96,Genehmigungsbedürftigkeit!B18),"") ->  | F18: =IF(D18<>"",D18*E18,"0") -> 0
B19: 1 | D19: =IF(INDEX(Einsatzstoffe!E5:E96,Genehmigungsbedürftigkeit!B19)<>0,INDEX(Einsatzstoffe!E5:E96,Genehmigungsbedürftigkeit!B19),"") ->  | F19: =IF(D19<>"",D19*E19,"0") -> 0
C20: Summe | E20: =SUM(E7:E19) -> 0 | F20: =SUM(F7:F19) -> 0

Sheet Hinweise
B2: Hinweise

Sheet Einsatzstoffe
B2: Einsatzstoffe gemäß Biomasseverordnung
A4: Nummer | B4: Einsatzstoff | C4: Methanertrag in Nm³/t Frischmasse | D4: Methangehalt in % | E4: Biogasertrag in Nm³/t Frischmasse
A5: 1. | B5: --- Keine Auswahl ---
A6: 2. | B6: Altbrot | C6: 254 | D6: 53 | E6: =C6/D6*100 -> 479.245283
A7: 3. | B7: Backabfälle | C7: 344 | D7: 53 | E7: =C7/D7*100 -> 649.0566038
A8: 4. | B8: Biertreber (frisch/abgepresst) | C8: 61 | D8: 59 | E8: 103.3898305
A9: 5. | B9: Blühstreifen, Blühflächen, Schonstreifen, Ackerrandstreifen, Wildblumenaufwuchs | C9: 72 | D9: 50 | E9: 144
A10: 6. | B10: Buttermilch frisch (nicht oder nicht mehr zum Verzehr geeignet) | C10: 32 | D10: 59 | E10: 54.23728814
A11: 7. | B11: Casein | C11: 392 | D11: 69 | E11: 568.115942
A12: 8. | B12: Corn-Cob-Mix (CCM) | C12: 242 | D12: 53 | E12: 456.6037736
A13: 9. | B13: Durchwachsene Silphie | C13: 67 | D13: 52 | E13: 128.8461538
A14: 10. | B14: Fettabscheiderinhalte | C14: 15 | D14: 68 | E14: 22.05882353
A15: 11. | B15: Flotatfette | C15: 43 | D15: 68 | E15: 63.23529412
A16: 12. | B16: Flotatschlamm | C16: 81 | D16: 68 | E16: 119.1176471
A17: 13. | B17: Frittierfette | C17: 562 | D17: 68 | E17: 826.4705882
A18: 14. | B18: Futterrübe | C18: 52 | D18: 52 | E18: 100
A19: 15. | B19: Futterrübenblatt | C19: 38 | D19: 54 | E19: 70.37037037
A20: 16. | B20: Geflügelmist, Geflügeltrockenkot | C20: 82 | D20: 65 | E20: 126.1538462
A21: 17. | B21: Gemüse (aussortiert) | C21: 40 | D21: 56 | E21: 71.42857143
A22: 18. | B22: Gemüseabputz | C22: 26 | D22: 56 | E22: 46.42857143
A23: 19. | B23: Getreide (Ausputz) | C23: 254 | D23: 56 | E23: 453.5714286
A24: 20. | B24: Getreide (Ganzpflanze) *) | C24: 103 | D24: 52 | E24: 198.0769231
A25: 21. | B25: Getreideabfälle | C25: 272 | D25: 54 | E25: 503.7037037
A26: 22. | B26: Getreidekorn | C26: 320 | D26: 53 | E26: 603.7735849
A27: 23. | B27: Getreideschlempe aus der Alkoholproduktion | C27: 18 | D27: 55 | E27: 32.72727273
A28: 24. | B28: Getreideschlempe mit Ausnahme der Alkoholproduktion | C28: 22 | D28: 59 | E28: 37.28813559
A29: 25. | B29: Getreidestaub | C29: 172 | D29: 53 | E29: 324.5283019
A30: 26. | B30: Glyzerin | C30: 421 | D30: 50 | E30: 842
A31: 27. | B31: Gras einschließlich Ackergras | C31: 100 | D31: 54 | E31: 185.1851852
A32: 28. | B32: Grünroggen (Ganzpflanze) *) | C32: 72 | D32: 53 | E32: 135.8490566
A33: 29. | B33: Grünschnitt aus der privaten und öffentlichen Garten- und Parkpflege | C33: 43 | D33: 50 | E33: 86
A34: 30. | B34: Heil- und Gewürzpflanzen (aussortiert) | C34: 58 | D34: 55 | E34: 105.4545455
A35: 31. | B35: Hülsenfrüchte (Ganzpflanze) *) | C35: 63 | D35: 55 | E35: 114.5454545
A36: 32. | B36: Kartoffelfruchtwasser aus der Stärkeproduktion | C36: 11 | D36: 71 | E36: 15.49295775
A37: 33. | B37: Kartoffelkraut | C37: 30 | D37: 55 | E37: 54.54545455
A38: 34. | B38: Kartoffeln (aussortiert) | C38: 92 | D38: 52 | E38: 176.9230769
A39: 35. | B39: Kartoffeln (gemust, mittlerer Stärkegehalt; nicht oder nicht mehr zum Verzehr geeignet) | C39: 66 | D39: 52 | E39: 126.9230769
A40: 36. | B40: Kartoffelprozesswasser aus der Stärkeproduktion | C40: 3 | D40: 65 | E40: 4.615384615
A41: 37. | B41: Kartoffelpülpe aus der Stärkeproduktion | C41: 61 | D41: 50 | E41: 122
A42: 38. | B42: Kartoffelschalen | C42: 66 | D42: 51 | E42: 129.4117647
A43: 39. | B43: Kartoffelschlempe aus der Alkoholproduktion | C43: 17 | D43: 54 | E43: 31.48148148
A44: 40. | B44: Kartoffelschlempe mit Ausnahme der Alkoholproduktion | C44: 18 | D44: 56 | E44: 32.14285714
A45: 41. | B45: Kleegras (als Zwischenfrucht von Ackerstandorten) | C45: 86 | D45: 55 | E45: 156.3636364
A46: 42. | B46: Kleie | C46: 270 | D46: 54 | E46: 500
A47: 43. | B47: Körnermais | C47: 324 | D47: 53 | E47: 611.3207547
A48: 44. | B48: Labmolke eingedickt | C48: 44 | D48: 53 | E48: 83.01886792
A49: 45. | B49: Labmolke frisch | C49: 18 | D49: 53 | E49: 33.96226415
A50: 46. | B50: Landschaftspflegematerial einschließlich Landschaftspflegegras | C50: 43 | D50: 50 | E50: 86
A51: 47. | B51: Leguminosen-Gemenge | C51: 79 | D51: 56 | E51: 141.0714286
A52: 48. | B52: Lieschkolbenschrot | C52: 148 | D52: 53 | E52: 279.245283
A53: 49. | B53: Lupine | C53: 80 | D53: 60 | E53: 133.3333333
A54: 50. | B54: Luzernegras (als Zwischenfrucht von Ackerstandorten) | C54: 79 | D54: 54 | E54: 146.2962963
A55: 51. | B55: Mageninhalt (Schwein) | C55: 27 | D55: 55 | E55: 49.09090909
A56: 52. | B56: Magermilch frisch (nicht oder nicht mehr zum Verzehr geeignet) | C56: 33 | D56: 58 | E56: 56.89655172
A57: 53. | B57: Magermilch trocken | C57: 363 | D57: 58 | E57: 625.862069
A58: 54. | B58: Mais (Ganzpflanze) *) | C58: 106 | D58: 52 | E58: 203.8461538
A59: 55. | B59: Melasse aus der Rübenzuckerherstellung | C59: 166 | D59: 52 | E59: 319.2307692
A60: 56. | B60: Milch (nicht oder nicht mehr zum Verzehr geeignet) | C60: 70 | D60: 63 | E60: 111.1111111
A61: 57. | B61: Milchzucker | C61: 378 | D61: 50 | E61: 756
A62: 58. | B62: Milchzuckermelasse | C62: 91 | D62: 56 | E62: 162.5
A63: 59. | B63: Milchzuckermelasse proteinarm | C63: 69 | D63: 53 | E63: 130.1886792
A64: 60. | B64: Molke teilentzuckert trocken | C64: 298 | D64: 56 | E64: 532.1428571
A65: 61. | B65: Molke nicht teilentzuckert und trocken | C65: 18 | D65: 53 | E65: 33.96226415
A66: 62. | B66: Obsttrester und Traubentrester (frisch/unbehandelt) | C66: 49 | D66: 52 | E66: 94.23076923
A67: 63. | B67: Panseninhalt | C67: 33 | D67: 55 | E67: 60
A68: 64. | B68: Pferdemist | C68: 35 | D68: 55 | E68: 63.63636364
A69: 65. | B69: Phacelia | C69: 80 | D69: 50 | E69: 160
A70: 66. | B70: Quark (nicht oder nicht mehr zum Verzehr geeignet) | C70: 92 | D70: 67 | E70: 137.3134328
A71: 67. | B71: Rapsextraktionsschrot | C71: 274 | D71: 60 | E71: =C71/D71*100 -> 456.6666667
A72: 68. | B72: Rapskuchen | C72: 317 | D72: 61 | E72: 519.6721311
A73: 69. | B73: Rinderfestmist | C73: 53 | D73: 55 | E73: 96.36363636
A74: 70. | B74: Rindergülle | C74: 17 | D74: 55 | E74: 30.90909091
A75: 71. | B75: Rübenkleinteile (aus der Zuckerverarbeitung) | C75: 50 | D75: 52 | E75: 96.15384615
A76: 72. | B76: Sauermolke eingedickt | C76: 42 | D76: 54 | E76: 77.77777778
A77: 73. | B77: Sauermolke frisch | C77: 20 | D77: 54 | E77: 37.03703704
A78: 74. | B78: Schafmist, Ziegenmist | C78: 59 | D78: 55 | E78: 107.2727273
A79: 75. | B79: Schnittblumen (aussortiert) | C79: 55 | D79: 50 | E79: 110
A80: 76. | B80: Schweinefestmist | C80: 45 | D80: 60 | E80: 75
A81: 77. | B81: Schweinegülle | C81: 12 | D81: 60 | E81: 20
A82: 78. | B82: Sonnenblume (Ganzpflanze) *) | C82: 67 | D82: 53 | E82: 126.4150943
A83: 79. | B83: Sonstige Einsatzstoffe (nicht NawaRo) **) | C83: 110 | D83: 55 | E83: 200
A84: 80. | B84: Sonstige NaWaRos **) | C84: 50 | D84: 55 | E84: 90.90909091
A85: 81. | B85: Sorghum (Ganzpflanze) *) | C85: 80 | D85: 52 | E85: 153.8461538
A86: 82. | B86: Speisereste | C86: 57 | D86: 60 | E86: 95
A87: 83. | B87: Straßenbegleitgras | C87: 43 | D87: 50 | E87: 86
A88: 84. | B88: Stroh | C88: 161 | D88: 52 | E88: 309.6153846
A89: 85. | B89: Sudangras | C89: 80 | D89: 53 | E89: 150.9433962
A90: 86. | B90: Tierblut | C90: 83 | D90: 70 | E90: 118.5714286
A91: 87. | B91: Weidelgras | C91: 79 | D91: 54 | E91: 146.2962963
A92: 88. | B92: Winterrübsen | C92: 70 | D92: 54 | E92: 129.6296296
A93: 89. | B93: Zuckerrüben | C93: 75 | D93: 51 | E93: 147.0588235
A94: 90. | B94: Zuckerrübenblatt mit Anteilen Zuckerrübe | C94: 46 | D94: 54 | E94: 85.18518519
A95: 91. | B95: Zuckerrübenpresskuchen aus der Zuckerproduktion | C95: 64 | D95: 51 | E95: 125.4901961
A96: 92. | B96: Zuckerrübenschnitzel | C96: 64 | D96: 51 | E96: 125.4901961
B100: *) Werte gelten für silierte und unsilierte Substrate
B101: **) Durchschnittswerte
